Cogmind - Beta 13 @@@ ROGUE MODE // 2024.06.26 @ 01:08:46 Player: Sionnis Result: Destroyed self via exploding Network Hub Performance ------------- Evolutions (4) 2000 Regions Visited (16) 3200 Robots Destroyed (124) 620 Value Destroyed (3807) 3807 Prototype IDs (23) 460 Alien Tech Used (0) 0 Bonus (2529) 2529 TOTAL SCORE: 12616 Bonus ------- Follower Combat Kills 683 Entered Garrisons 200 Used RIF Installer 500 Network Hubs Disabled 800 Met R17 at Cetus 500 Friendly Fire -154 Cogmind --------- Core Integrity 0/850 Matter 280/300 Energy 101/150 System Corruption 5% Temperature Cool (4) Movement Flying (26) Location -6/Hub_04(d) Parts ------- > --- POWER (1) -------- Light Angular Momentum Engine > --- PROPULSION (5) --- Improved VTOL Module Improved VTOL Module Nuclear Pulse Thruster Nuclear Pulse Thruster Biomechanical Wings > --- UTILITY (7) ------ Medium Storage Unit Advanced Weight Redist. System Experimental Sensor Array Advanced Signal Interpreter Improved Hacking Suite Improved Hacking Suite Improved System Shield > --- WEAPON (2) ------- Plasma Cannon > --- INVENTORY (10) --- Light Angular Momentum Engine Nuclear Pulse Thruster Stasis Canceller Improved Utility Shielding Centrium Medium Armor Plating Improved Hacking Suite Improved System Shield Improved System Restoration Module Improved System Restoration Module Peak State ------------ > --- POWER ------------ Light Angular Momentum Engine > --- PROPULSION ------- Improved Treads Centrium Heavy Treads Improved VTOL Module Improved VTOL Module > --- UTILITY ---------- Advanced Heat Sink Medium Storage Unit Advanced Signal Interpreter Centrium Medium Armor Plating Improved Hacking Suite Improved Hacking Suite Improved System Shield > --- WEAPON ----------- Advanced Variable Charge Gun KE Penetrator > --- INVENTORY -------- VTOL Module Improved VTOL Module Advanced Weight Redist. System Enhanced Optical Array Experimental Sensor Array Stasis Canceller Improved Utility Shielding System Shield [Rating: 85] Favorites ----------- Power Micro Nuclear Core Engine Deuterium Engine Power Core Micro Nuclear Core Propulsion Improved VTOL Module Treads Light Treads Wheel Wheel Flight Unit Improved VTOL Module Utility Hacking Suite Device Experimental Sensor Array Storage Medium Storage Unit Processor Improved Signal Interpreter Hackware Hacking Suite Protection Improved Propulsion Shielding Weapon Scythe Energy Gun Advanced Variable Charge Gun Energy Cannon Advanced Beam Cannon Ballistic Gun Flak Gun Ballistic Cannon Bore Cannon Launcher Heavy Missile Launcher Special Weapon Plasma Cutter Slashing Weapon Scythe Build | -11 -10 -10 -10 -9 -8 -8 -7 -7 -7 -7 -6 -6 -6 -6 -6 -6 ------- Run | Yrd Mat Min Exi Min Mat Gar Fac Low Low Zio Pro Fac Ext Cet Arc Hub Slots Evolved 8 | . . . . . 4 . 2 . . . . 2 . . . . Power . | . . . . . . . . . . . . . . . . . Propulsion 3 | . . . . . 2 . . . . . . 1 . . . . Utility 5 | . . . . . 2 . 2 . . . . 1 . . . . Weapon . | . . . . . . . . . . . . . . . . . Parts Attached 178 | 7 17 9 . . 10 7 44 1 5 . 2 14 20 16 17 9 Power 15 | 1 2 1 . . . 2 2 . . . . 2 1 3 1 . Engine 11 | 1 2 1 . . . 2 1 . . . . . 1 2 1 . Core 4 | . . . . . . . 1 . . . . 2 . 1 . . Reactor . | . . . . . . . . . . . . . . . . . Propulsion 42 | 2 5 1 . . 5 2 11 . . . . 1 1 4 5 5 Treads 18 | 2 4 1 . . 5 2 . . . . . . . 3 1 . Leg . | . . . . . . . . . . . . . . . . . Wheel 1 | . 1 . . . . . . . . . . . . . . . Hover . | . . . . . . . . . . . . . . . . . Flight 23 | . . . . . . . 11 . . . . 1 1 1 4 5 Utility 84 | 1 4 5 . . 3 3 25 . 5 . 2 6 17 4 6 3 Device 33 | . . 5 . . 1 . 9 . 2 . 1 2 8 1 3 1 Storage 7 | 1 3 . . . 1 . 1 . 1 . . . . . . . Processor 9 | . 1 . . . 1 2 3 . . . . 1 . . . 1 Hackware 11 | . . . . . . . 4 . 1 . . 1 1 . 3 1 Protection 24 | . . . . . . 1 8 . 1 . 1 2 8 3 . . Artifact . | . . . . . . . . . . . . . . . . . Weapon 37 | 3 6 2 . . 2 . 6 1 . . . 5 1 5 5 1 Energy Gun 8 | 2 2 . . . . . . . . . . . . 1 3 . Energy Cannon 7 | . 2 1 . . . . . . . . . 3 . . . 1 Ballistic Gun 9 | 1 2 . . . 2 . . . . . . . . 2 2 . Ballistic Cannon 1 | . . . . . . . . . . . . . . 1 . . Launcher 7 | . . 1 . . . . 2 1 . . . 2 1 . . . Special Weapon 1 | . . . . . . . 1 . . . . . . . . . Impact Weapon . | . . . . . . . . . . . . . . . . . Slashing Weapon 4 | . . . . . . . 3 . . . . . . 1 . . Piercing Weapon . | . . . . . . . . . . . . . . . . . Special Melee Weapon . | . . . . . . . . . . . . . . . . . Unidentified Prototypes 10 | . 2 1 . . . . . . 1 . . 1 . 4 . 1 Parts Lost 33 | . 4 3 . . 1 . 1 . . . . 1 4 12 2 5 Power 6 | . 1 1 . . . . . . . . . . 1 3 . . Propulsion 11 | . 2 1 . . 1 . . . . . . . 1 4 . 2 Utility 6 | . . . . . . . . . . . . 1 1 2 . 2 Weapon 10 | . 1 1 . . . . 1 . . . . . 1 3 2 1 Highest Loss Streak 10 | . 3 3 . . 1 . 1 . . . . 1 2 10 1 4 To Critical Strikes 2 | . 1 . . . . . . . . . . . . 1 . . Average Slot Usage (%) 92 | . 91 94 100 100 93 100 96 92 91 92 92 92 89 72 80 87 Engine 5 | . 10 10 14 14 9 9 4 . . . . . 1 1 2 6 Core 2 | . . . . . . . 2 7 7 7 7 6 4 1 3 . Treads 9 | . 24 14 14 14 21 36 . . . . . . . 3 9 . Wheel 2 | . 2 14 14 14 8 . . . . . . . . . . . Flight 15 | . . . . . . . 29 30 30 30 30 33 32 7 5 30 Device 8 | . . 9 14 14 18 11 6 7 6 7 6 6 7 7 10 10 Storage 8 | . 14 14 14 14 9 9 2 7 6 7 7 6 6 6 6 6 Processor 8 | . 13 3 . . 9 9 12 7 7 7 7 6 6 6 6 10 Hackware 8 | . . . . . . . 15 23 22 23 23 18 11 6 13 15 Protection 4 | . . . . . . 6 6 . . . . 5 9 17 8 . Energy Gun 1 | . 5 . . . . . . . . . . . . 2 5 4 Energy Cannon 5 | . 8 26 28 28 1 . . . . . . . . . . 1 Ballistic Gun 4 | . 10 . . . 16 18 . . . . . . . 3 5 . Slashing Weapon 2 | . . . . . . . 6 7 7 7 7 6 6 2 . . Naked Turns . | . . . . . . . . . . . . . . . . . Heaviest Build 105 | 14 92 102 98 98 103 105 26 26 19 19 20 21 33 39 40 27 Greatest Support 112 | 40 40 10 10 10 80 80 24 20 20 20 20 25 34 109 112 37 Greatest Overweight (x) 10 | . 9 10 9 9 10 1 1 1 . . . . 1 9 . 1 Average Overweight (x) . | . 1 9 9 9 7 1 . . . . . . . . . . Largest Inventory Capacity 25 | 8 25 25 25 25 25 25 25 10 10 10 10 10 10 10 10 10 Average Capacity 14 | 7 16 25 25 25 25 25 6 10 9 10 10 10 10 10 10 10 Most Carried 25 | 2 14 16 16 18 25 25 25 10 10 10 10 10 10 10 10 10 Average Carried 11 | . 9 10 16 17 20 24 6 9 9 10 10 9 9 9 9 9 Final Capacity 25 | 8 25 25 25 25 25 25 10 10 10 10 10 10 10 10 10 10 Final Carried 25 | 2 11 16 16 18 25 25 9 9 10 10 10 10 10 10 10 9 Class Distribution -------------------- 32% | Mutant 24% | Hacker-Sprinter 18% | Scavenger-Mutant 9% | Machinist-Sprinter 3% | Hacker-Scout 3% | Sprinter 3% | Machinist-Mutant Dominant Class ---------------- Mutant | -10/Materials Mutant | -10/Mines Mutant | -10/Exiles Mutant | -9/Mines Scavenger-Mutant | -8/Materials Scavenger-Mutant | -8/Garrison Hacker-Sprinter | -7/Factory Hacker-Sprinter | -7/Lower Caves Hacker-Sprinter | -7/Lower Caves Hacker-Sprinter | -7/Zion Hacker-Sprinter | -6/Proximity Caves Hacker-Sprinter | -6/Factory Machinist-Sprinter | -6/Extension Scavenger-Mutant | -6/Cetus Scavenger-Mutant | -6/Archives Hacker-Scout | -6/Hub_04(d) Resources | -11 -10 -10 -10 -9 -8 -8 -7 -7 -7 -7 -6 -6 -6 -6 -6 -6 ----------- Run | Yrd Mat Min Exi Min Mat Gar Fac Low Low Zio Pro Fac Ext Cet Arc Hub Matter Collected 5592 | 270 490 113 . . 465 260 328 51 83 . 64 120 2345 459 419 125 Remotely . | . . . . . . . . . . . . . . . . . Salvage Created 4853 | . 837 183 . . 582 365 233 . . . . 478 896 76 617 586 Parts 240 | . 44 12 . . 29 19 20 . . . . 20 33 4 28 31 Haulers Intercepted 10 | . 1 . . . 1 . 1 . . . . 2 3 . . 2 Recyclers Shooed 6 | . 2 . . . 2 . . . . . . . . . . 2 Parts Field Recycled . | . . . . . . . . . . . . . . . . . Retrieved Matter . | . . . . . . . . . . . . . . . . . Parts Self-Destructed . | . . . . . . . . . . . . . . . . . Prevented . | . . . . . . . . . . . . . . . . . Kills | -11 -10 -10 -10 -9 -8 -8 -7 -7 -7 -7 -6 -6 -6 -6 -6 -6 ------- Run | Yrd Mat Min Exi Min Mat Gar Fac Low Low Zio Pro Fac Ext Cet Arc Hub Combat Hostiles Destroyed 82 | . 17 15 . . 12 14 1 . . . . . 13 1 4 5 Melee 5 | . . . . . . . 1 . . . . . 4 . . . Guns 44 | . 10 . . . 12 14 . . . . . . . 1 4 3 Cannons 16 | . 7 7 . . . . . . . . . . . . . 2 AOE 17 | . . 8 . . . . . . . . . . 9 . . . Classes Destroyed 17 | . 6 2 . . 2 . 1 . . . . . 6 . . . Worker 2 | . . . . . . . . . . . . . 1 . . 1 Builder 2 | . . . . . . . . . . . . . 2 . . . Tunneler 1 | . . . . . . . . . . . . . 1 . . . Hauler 10 | . 1 . . . 1 . 1 . . . . 2 3 . . 2 Recycler 10 | . 2 . . . 3 . . . . . . 2 2 . . 1 Mechanic 1 | . 1 . . . . . . . . . . . . . . . Operator 11 | . . . . . . . 1 . . . . . 1 . 8 1 Watcher 13 | . 3 . . . 1 . 4 . . . . 2 . 1 . 2 Swarmer 29 | . 6 4 . . 4 7 1 . . . . . 4 . . 3 Grunt 20 | . 11 1 . . 2 3 . . . . . . 3 . . . Sentry 15 | . . . . . 5 4 . . . . . . 2 . 4 . Demolisher 1 | . . 1 . . . . . . . . . . . . . . Hunter 3 | . . . . . 1 . . . . . . . 2 . . . Programmer 3 | . . . . . . . . . . . . . 1 . . 2 Behemoth 1 | . . . . . . . . . . . . . 1 . . . Cetus Guard 1 | . . . . . . . . . . . . . . 1 . . Assembled 9 | . . 9 . . . . . . . . . . . . . . Savage 1 | . . . . . . . . . . . . . 1 . . . Best Kill Streak 9 | . 5 9 . . 4 4 1 . . . . 3 7 1 2 3 Combat Bots Only 9 | . 4 9 . . 4 4 1 . . . . . 5 1 2 2 Max Kills in Single Turn 4 | . 1 4 . . 2 2 1 . . . . 1 3 1 1 1 Gunslinging 1 | . . . . . 1 1 . . . . . . . . . . Exploded 4 | . . 4 . . . . . . . . . . 3 . . . Melee 1 | . . . . . . . 1 . . . . . 1 . . . Uniques/NPCs Destroyed . | . . . . . . . . . . . . . . . . . Combat | -11 -10 -10 -10 -9 -8 -8 -7 -7 -7 -7 -6 -6 -6 -6 -6 -6 -------- Run | Yrd Mat Min Exi Min Mat Gar Fac Low Low Zio Pro Fac Ext Cet Arc Hub Hostile Shots Fired 653 | . 114 21 . . 73 46 60 . 4 . 15 13 107 105 40 55 Missed 235 | . 25 6 . . 16 14 40 . 3 . 8 8 47 35 13 20 Damage Taken 6484 | . 884 286 . . 599 220 185 . 18 . 119 50 975 1909 647 592 Core 1308 | . 155 68 . . 68 32 63 . . . 61 . 368 300 92 101 Absorbed by Shields 348 | . . . . . 220 128 . . . . . . . . . . Redirected to Shielding 268 | . . . . . . . 38 . . . 23 15 65 127 . . Regen/Repaired (Parts) 219 | . 111 . . . . . 34 . . . . 74 . . . . Core Remaining (%) 68 | 100 . . . 10 . 81 . . . . 82 . . . . . Volleys Fired 343 | . 65 20 . 2 37 19 . . . . . 13 22 27 57 81 Largest 2 | . 2 2 . 2 2 2 . . . . . 1 1 1 2 1 Hottest 136 | . 88 136 . 136 56 56 . . . . . 90 43 57 115 80 Shots Fired 508 | . 120 34 . 4 74 38 . . . . . 13 22 27 94 82 Gun 371 | . 87 1 . . 74 38 . . . . . . . 18 94 59 Cannon 113 | . 33 31 . 4 . . . . . . . 13 . 9 . 23 Launcher 24 | . . 2 . . . . . . . . . . 22 . . . Special . | . . . . . . . . . . . . . . . . . Kinetic 251 | . 55 . . . 74 38 . . . . . . . 27 57 . Thermal 233 | . 65 32 . 4 . . . . . . . 13 . . 37 82 Explosive 24 | . . 2 . . . . . . . . . . 22 . . . Electromagnetic . | . . . . . . . . . . . . . . . . . Robot Hit Streak 24 | . 18 9 . 4 10 14 . . . . . . 2 8 11 24 Robot Miss Streak 13 | . 3 3 . 1 13 10 . . . . . . . 6 3 4 Penetration Max 1 | . . . . . . . . . . . . . . . 1 . Secondary Targets 6 | . . . . . 3 3 . . . . . . . . . . Max Gunslinging Chain 1 | . . . . . 1 1 . . . . . . . . . . Shots Hit Robots 367 | . 83 19 . 3 65 34 11 . . . . 8 17 18 71 38 Core Hits 286 | . 36 24 . . 73 53 6 . . . . 6 39 6 30 13 Critical Kills 2 | . . . . . . . . . . . . . . 1 1 . Critical Parts Destroyed 7 | . . . . . . . . . . . . . . 4 3 . Critical Strikes 18 | . 5 . . . . . 1 . . . . . 2 5 5 . Burn 5 | . 5 . . . . . . . . . . . . . . . Destroy 10 | . . . . . . . . . . . . . . 5 5 . Sever 3 | . . . . . . . 1 . . . . . 2 . . . Melee Attacks 141 | . . . . . . . 66 . 1 . 2 48 22 2 . . Impact . | . . . . . . . . . . . . . . . . . Slashing 141 | . . . . . . . 66 . 1 . 2 48 22 2 . . Piercing . | . . . . . . . . . . . . . . . . . Sneak Attacks 12 | . . . . . . . 2 . . . . 6 4 . . . Combat Hostiles 1 | . . . . . . . . . . . . . 1 . . . Follow-up Attacks . | . . . . . . . . . . . . . . . . . Damage Inflicted 11822 | . 1277 795 . 68 1126 640 508 . . . . 510 3014 567 1931 1386 Guns 5883 | . 885 . . . 1126 640 . . . . . . . 420 1919 893 Cannons 1161 | . 384 365 . 68 . . . . . . . . . 97 . 247 Explosions 2989 | . . 430 . . . . . . . . . . 2313 . . 246 Melee 1763 | . . . . . . . 508 . . . . 510 701 44 . . Ramming 26 | . 8 . . . . . . . . . . . . 6 12 . Kinetic 4071 | . 532 . . . 1126 640 . . . . . . . 517 1256 . Thermal 2973 | . 737 365 . 68 . . . . . . . . . . 663 1140 Explosive 2743 | . . 430 . . . . . . . . . . 2313 . . . Electromagnetic 246 | . . . . . . . . . . . . . . . . 246 Impact . | . . . . . . . . . . . . . . . . . Slashing 1763 | . . . . . . . 508 . . . . 510 701 44 . . Piercing . | . . . . . . . . . . . . . . . . . Highest Corruption 3 | . . . . . . . 1 . . . . 2 2 2 2 3 Average Corruption 1 | . . . . . . . 1 . . . . 1 2 2 1 2 Corruption Purged 3 | . . . . . . . 1 . . . . . . . 2 . Corruption Blocked . | . . . . . . . . . . . . . . . . . Effects 37 | . . . . . . . 7 . . . . 2 9 10 8 1 Message Errors 10 | . . . . . . . 3 . . . . . 3 2 2 . Matter Fused 10 | . . . . . . . 2 . . . . 1 1 3 3 . Heat Flow Errors 2 | . . . . . . . . . . . . . 2 . . . Energy Discharges 4 | . . . . . . . 1 . . . . . . 3 . . Parts Rejected 1 | . . . . . . . . . . . . 1 . . . . Data Loss (minor) 4 | . . . . . . . . . . . . . 3 1 . . Data Loss (major) 1 | . . . . . . . 1 . . . . . . . . . Misfires 1 | . . . . . . . . . . . . . . . . 1 Alerts 2 | . . . . . . . . . . . . . . 1 1 . Weapon Failures 2 | . . . . . . . . . . . . . . . 2 . Overload Shots . | . . . . . . . . . . . . . . . . . Overflow Damage 251 | . 5 28 . . . . 61 . . . . 8 95 . 2 52 Projectiles 44 | . 5 11 . . . . . . . . . . . . . 28 Explosions 82 | . . 17 . . . . . . . . . . 41 . . 24 Melee 125 | . . . . . . . 61 . . . . 8 54 . 2 . Knockbacks 2 | . 1 . . . . . . . . . . . . . 1 . Impact 2 | . 1 . . . . . . . . . . . . . 1 . Kinetic . | . . . . . . . . . . . . . . . . . Secondary . | . . . . . . . . . . . . . . . . . Self-Inflicted Damage 159 | . . 53 . . . . . . . . . . 1 . . 105 Shots 4 | . . 2 . . . . . . . . . . 1 . . 1 Rammed 8 | . 3 1 . . . . . . . . . . . 3 1 . Targets Rammed 8 | . 3 1 . . . . . . . . . . . 3 1 . Kicked . | . . . . . . . . . . . . . . . . . Crushed . | . . . . . . . . . . . . . . . . . Highest Temperature 446 | . 315 446 . 156 14 18 22 . 2 . . 225 289 11 128 444 Average Temperature 110 | . 97 169 . 79 8 10 3 . 2 . . 85 66 2 48 135 Received Heat Transfer 1116 | . 330 20 . . 215 62 48 . 9 . . 21 114 198 99 . Effects 11 | . 1 3 . . . . . . . . . . . . . 7 Shutdowns 3 | . . 2 . . . . . . . . . . . . . 1 Energy Bleed 3 | . 1 1 . . . . . . . . . . . . . 1 Matter Decay 1 | . . . . . . . . . . . . . . . . 1 Short Circuit 1 | . . . . . . . . . . . . . . . . 1 Damage (minor) 1 | . . . . . . . . . . . . . . . . 1 Damage (major) 2 | . . . . . . . . . . . . . . . . 2 Siege Activations . | . . . . . . . . . . . . . . . . . Robots Corrupted . | . . . . . . . . . . . . . . . . . Combat Hostiles . | . . . . . . . . . . . . . . . . . Parts Fried 1 | . . . . . . . . . . . . . . . . 1 Impact Corruptions 1 | . . . . . . . . . . . . . . . 1 . Robots Melted 1 | . . . . . . . . . . . . . . . . 1 Combat Hostiles . | . . . . . . . . . . . . . . . . . Parts Melted 13 | . 8 1 . . . . . . . . . . . . . 4 Heat Transferred 5099 | . 1998 629 . 111 . . . . . . . . . . 851 1510 Parts Sabotaged . | . . . . . . . . . . . . . . . . . Parts Stolen . | . . . . . . . . . . . . . . . . . Parts Stripped . | . . . . . . . . . . . . . . . . . Power Chain Reactions . | . . . . . . . . . . . . . . . . . Alert | -11 -10 -10 -10 -9 -8 -8 -7 -7 -7 -7 -6 -6 -6 -6 -6 -6 ------- Run | Yrd Mat Min Exi Min Mat Gar Fac Low Low Zio Pro Fac Ext Cet Arc Hub Peak Influence 534 | . 200 120 . . 229 417 534 . . . . 283 310 211 223 241 Initial 218 | . . 37 . . . 61 218 . . . . 103 56 123 . 11 Average 145 | . 97 71 . . 105 265 262 . . . . 150 145 98 122 85 Maximum Alert Level 2 | . 1 . . . 1 2 2 . . . . 1 1 1 1 1 Low Security (%) 74 | 100 97 100 . 100 92 49 29 . . . . 72 74 81 85 99 Level 1 22 | . 2 . . . 7 34 58 . . . . 27 25 18 14 . Level 2 3 | . . . . . . 16 11 . . . . . . . . . Level 3 . | . . . . . . . . . . . . . . . . . Level 4 . | . . . . . . . . . . . . . . . . . Level 5 . | . . . . . . . . . . . . . . . . . High Security . | . . . . . . . . . . . . . . . . . Max Security . | . . . . . . . . . . . . . . . . . Squads Dispatched 38 | . 4 1 . . 3 . 11 . . . . 11 2 . . 6 Investigation 26 | . 4 1 . . . . 9 . . . . 8 1 . . 3 Extermination 3 | . . . . . . . 1 . . . . 1 . . . 1 Reinforcement 6 | . . . . . . . 1 . . . . 2 1 . . 2 Assault . | . . . . . . . . . . . . . . . . . Garrison 3 | . . . . . 3 . . . . . . . . . . . Intercept . | . . . . . . . . . . . . . . . . . Searches Triggered . | . . . . . . . . . . . . . . . . . Construction Impeded 1 | . . . . . . . . . . . . . 1 . . . Haulers Reinforced 1 | . . . . . . . . . . . . 1 . . . . Active Scanning Responses . | . . . . . . . . . . . . . . . . . Cargo Convoy Interrupts . | . . . . . . . . . . . . . . . . . Stealth | -11 -10 -10 -10 -9 -8 -8 -7 -7 -7 -7 -6 -6 -6 -6 -6 -6 --------- Run | Yrd Mat Min Exi Min Mat Gar Fac Low Low Zio Pro Fac Ext Cet Arc Hub Distress Signals 6 | . . . . . . . 1 . . . . 1 2 2 . . Communications Jammed . | . . . . . . . . . . . . . . . . . Distress Signals . | . . . . . . . . . . . . . . . . . Times Spotted 241 | . 24 21 . . 17 16 45 . 9 . 11 22 33 9 21 13 Peak Tracking Total 15 | . 5 15 . . 4 5 6 . 3 . 7 8 7 5 1 5 Tactical Retreats 47 | . 1 1 . . 1 2 16 . 3 . 7 11 5 . . . Traps | -11 -10 -10 -10 -9 -8 -8 -7 -7 -7 -7 -6 -6 -6 -6 -6 -6 ------- Run | Yrd Mat Min Exi Min Mat Gar Fac Low Low Zio Pro Fac Ext Cet Arc Hub Traps Triggered 14 | . 4 . . . . 2 4 . . . . 1 3 . . . Indirectly . | . . . . . . . . . . . . . . . . . Trap Hack Attempts . | . . . . . . . . . . . . . . . . . Triggered . | . . . . . . . . . . . . . . . . . Disarmed . | . . . . . . . . . . . . . . . . . Reprogrammed . | . . . . . . . . . . . . . . . . . Reused . | . . . . . . . . . . . . . . . . . Traps Extracted . | . . . . . . . . . . . . . . . . . Installed . | . . . . . . . . . . . . . . . . . Triggered . | . . . . . . . . . . . . . . . . . Machines | -11 -10 -10 -10 -9 -8 -8 -7 -7 -7 -7 -6 -6 -6 -6 -6 -6 ---------- Run | Yrd Mat Min Exi Min Mat Gar Fac Low Low Zio Pro Fac Ext Cet Arc Hub Machines Disabled 25 | . . 2 . . . . 1 . . . . . 10 . 5 7 Max in Single Turn 4 | . . 1 . . . . 1 . . . . . 1 . 1 4 Garrison Access 7 | . . . . . . . 4 . . . . 2 . . . 1 Network Hub 4 | . . . . . . . . . . . . . . . . 4 Energy Cycler 1 | . . . . . . . . . . . . . 1 . . . Machines Repaired . | . . . . . . . . . . . . . . . . . Machines Dismantled . | . . . . . . . . . . . . . . . . . Machines Sabotaged 2 | . . . . . . . . . . . . . . . . 2 Overloaded Fab Kills . | . . . . . . . . . . . . . . . . . Hacking | -11 -10 -10 -10 -9 -8 -8 -7 -7 -7 -7 -6 -6 -6 -6 -6 -6 --------- Run | Yrd Mat Min Exi Min Mat Gar Fac Low Low Zio Pro Fac Ext Cet Arc Hub Machines Accessed 99 | . 10 1 1 1 2 3 36 . 2 . . 22 13 1 . 7 Terminals 61 | . 8 . . 1 1 3 19 . . . . 11 11 1 . 6 Fabricators 8 | . . . . . . . 6 . . . . 2 . . . . Repair Stations 7 | . 1 . . . . . 3 . . . . 2 1 . . . Recycling Units 8 | . 1 . . . . . 3 . . . . 3 1 . . . Scanalyzers 3 | . . . . . . . 1 . . . . 2 . . . . Garrison Access 8 | . . . . . 1 . 4 . . . . 2 . . . 1 Total Hacks 261 | . 33 1 4 3 3 5 104 . 2 . . 54 34 3 . 15 Successful 144 | . 19 1 4 1 1 3 53 . 2 . . 33 19 1 . 7 Failed 115 | . 14 . . 2 2 2 50 . . . . 20 15 2 . 8 Catastrophic 17 | . 2 . . . . . 13 . . . . 2 . . . . Database Lockouts 2 | . . . . . . . 1 . . . . 1 . . . . Manual 129 | . 19 . 1 3 2 1 48 . . . . 27 14 . . 14 Terminals 178 | . 27 . . 3 2 5 66 . . . . 32 26 3 . 14 Fabricators 24 | . . . . . . . 18 . . . . 6 . . . . Repair Stations 21 | . 3 . . . . . 10 . . . . 5 3 . . . Recycling Units 17 | . 3 . . . . . 4 . . . . 5 5 . . . Scanalyzers 6 | . . . . . . . 2 . . . . 4 . . . . Garrison Access 8 | . . . . . 1 . 4 . . . . 2 . . . 1 Terminal Hacks 71 | . 13 1 4 1 . 3 23 . 2 . . 11 11 1 . 1 Record 4 | . . . 4 . . . . . . . . . . . . . Part Schematic 10 | . 1 . . . . . 6 . . . . 1 2 . . . Robot Analysis 10 | . 9 . . 1 . . . . . . . . . . . . Prototype ID Bank 5 | . 1 . . . . . 2 . . . . . 2 . . . Open Door 10 | . . 1 . . . 1 . . 2 . . 1 4 1 . . Branch Access Points 1 | . . . . . . . . . . . . 1 . . . . Emergency Access Points 1 | . . . . . . . 1 . . . . . . . . . Machine Index 1 | . . . . . . . 1 . . . . . . . . . Terminal Index 3 | . . . . . . . 1 . . . . 1 . . . 1 Fabricator Index 2 | . . . . . . . 1 . . . . 1 . . . . Unreport Threat 8 | . . . . . . . 4 . . . . 1 3 . . . Locate Traps 2 | . . . . . . . 1 . . . . 1 . . . . Dispatch Records 2 | . . . . . . . 1 . . . . 1 . . . . Recall Extermination 2 | . . . . . . . 1 . . . . 1 . . . . Hauler Manifests 5 | . 1 . . . . . 2 . . . . 2 . . . . Registered Components 1 | . . . . . . . 1 . . . . . . . . . Registered Prototypes 2 | . 1 . . . . . 1 . . . . . . . . . Garrison Registry 1 | . . . . . . 1 . . . . . . . . . . Patrol Navigation 1 | . . . . . . 1 . . . . . . . . . . Fabricator Hacks 13 | . . . . . . . 11 . . . . 2 . . . . Network Status 1 | . . . . . . . 1 . . . . . . . . . Load Schematic 7 | . . . . . . . 5 . . . . 2 . . . . Build 5 | . . . . . . . 5 . . . . . . . . . Repair Station Hacks 15 | . 3 . . . . . 7 . . . . 4 1 . . . Scan Component 10 | . 2 . . . . . 5 . . . . 2 1 . . . Repair 5 | . 1 . . . . . 2 . . . . 2 . . . . Recycling Unit Hacks 6 | . 1 . . . . . . . . . . 3 2 . . . Retrieve Components 6 | . 1 . . . . . . . . . . 3 2 . . . Scanalyzer 4 | . . . . . . . . . . . . 4 . . . . Insert Component 2 | . . . . . . . . . . . . 2 . . . . Analyze 2 | . . . . . . . . . . . . 2 . . . . Garrison Access Hacks 8 | . . . . . 1 . 4 . . . . 2 . . . 1 Unlock Access 1 | . . . . . 1 . . . . . . . . . . . Seal Access 7 | . . . . . . . 4 . . . . 2 . . . 1 Unauthorized Hacks 27 | . 2 . . . . . 8 . . . . 7 5 . . 5 Terminals 18 | . 2 . . . . . 4 . . . . 4 3 . . 5 Assimilate 4 | . . . . . . . 2 . . . . 1 1 . . . Botnet 10 | . 2 . . . . . 2 . . . . 2 2 . . 2 Operators 1 | . . . . . . . . . . . . 1 . . . . Sabotage 3 | . . . . . . . . . . . . . . . . 3 Fabricators 5 | . . . . . . . 4 . . . . 1 . . . . Prioritize 5 | . . . . . . . 4 . . . . 1 . . . . Repair Stations . | . . . . . . . . . . . . . . . . . Recycling Units 4 | . . . . . . . . . . . . 2 2 . . . Reject 2 | . . . . . . . . . . . . 1 1 . . . Recyclers 2 | . . . . . . . . . . . . 1 1 . . . Scanalyzers . | . . . . . . . . . . . . . . . . . Garrison Access . | . . . . . . . . . . . . . . . . . Data Cores Recovered . | . . . . . . . . . . . . . . . . . Used . | . . . . . . . . . . . . . . . . . Hacking Detections 69 | . 10 . . . 2 2 28 . . . . 15 8 . . 4 Full Trace Events 17 | . 1 . . . . . 8 . . . . 7 1 . . . Feedback Events 4 | . . . . . . . 1 . . . . 3 . . . . Corruption 3 | . . . . . . . 1 . . . . 2 . . . . Hackware Fried 1 | . . . . . . . . . . . . 1 . . . . Feedback Blocked . | . . . . . . . . . . . . . . . . . Robot Schematics Acquired . | . . . . . . . . . . . . . . . . . Robots Built . | . . . . . . . . . . . . . . . . . Authchips . | . . . . . . . . . . . . . . . . . Time . | . . . . . . . . . . . . . . . . . Total Robot Build Rating . | . . . . . . . . . . . . . . . . . Part Schematics Acquired 12 | . 1 . . . . . 6 . . . . 3 2 . . . Parts Built 5 | . . . . . . . 5 . . . . . . . . . Authchips . | . . . . . . . . . . . . . . . . . Time 261 | . . . . . . . 261 . . . . . . . . . Total Part Build Rating 15 | . . . . . . . 15 . . . . . . . . . Parts Repaired 5 | . 1 . . . . . 2 . . . . 2 . . . . Time 242 | . 13 . . . . . 174 . . . . 55 . . . . Parts Recycled . | . . . . . . . . . . . . . . . . . Recycled Matter . | . . . . . . . . . . . . . . . . . Retrieved Matter . | . . . . . . . . . . . . . . . . . Retrieved Components 14 | . 6 . . . . . . . . . . 8 . . . . Parts Scanalyzed 2 | . . . . . . . . . . . . 2 . . . . Part Schematics Acquired 2 | . . . . . . . . . . . . 2 . . . . Parts Damaged 1 | . . . . . . . . . . . . 1 . . . . Bothacking | -11 -10 -10 -10 -9 -8 -8 -7 -7 -7 -7 -6 -6 -6 -6 -6 -6 ------------ Run | Yrd Mat Min Exi Min Mat Gar Fac Low Low Zio Pro Fac Ext Cet Arc Hub Used RIF Installer 1 | . . . . . . 1 . . . . . . . . . . Robots Hacked . | . . . . . . . . . . . . . . . . . Non-combat . | . . . . . . . . . . . . . . . . . Combat . | . . . . . . . . . . . . . . . . . Robot Hacks Applied . | . . . . . . . . . . . . . . . . . Relay Couplers Released 3 | . . . . . . . . . . . . . . . . 3 Machine Destruction 3 | . . . . . . . . . . . . . . . . 3 Fabnet Peak Effective % . | . . . . . . . . . . . . . . . . . Robots Rewired 9 | . . . . . . 3 . . . . . . 6 . . . Allies Hacked . | . . . . . . . . . . . . . . . . . Hacks Repelled . | . . . . . . . . . . . . . . . . . Allies | -11 -10 -10 -10 -9 -8 -8 -7 -7 -7 -7 -6 -6 -6 -6 -6 -6 -------- Run | Yrd Mat Min Exi Min Mat Gar Fac Low Low Zio Pro Fac Ext Cet Arc Hub Total Allies 19 | . . . . . . 3 1 . . . . 1 14 . . . Largest Group 7 | . . . . . . 3 3 . . . . 1 7 1 . . Highest-Rated Group 197 | . . . . . . 82 82 . . . . 26 197 99 . . Highest-Rated Ally 99 | . . . . . . 31 31 . . . . 26 99 99 . . Total Orders . | . . . . . . . . . . . . . . . . . Ally Attacks 94 | . . . . . . . 2 . . . . . 63 29 . . Total Damage 3307 | . . . . . . . 42 . . . . . 1219 2046 . . Kills 18 | . . . . . . . . . . . . . 12 6 . . Allies Corrupted . | . . . . . . . . . . . . . . . . . Allies Melted . | . . . . . . . . . . . . . . . . . Intel | -11 -10 -10 -10 -9 -8 -8 -7 -7 -7 -7 -6 -6 -6 -6 -6 -6 ------- Run | Yrd Mat Min Exi Min Mat Gar Fac Low Low Zio Pro Fac Ext Cet Arc Hub Robot Analysis Total 10 | . 9 . . 1 . . . . . . . . . . . . Derelict Logs Recovered 4 | . . 1 . 1 . . . 1 1 . . . . . . . Drone Launches . | . . . . . . . . . . . . . . . . . Drone Recoveries . | . . . . . . . . . . . . . . . . . Exploration | -11 -10 -10 -10 -9 -8 -8 -7 -7 -7 -7 -6 -6 -6 -6 -6 -6 ------------- Run | Yrd Mat Min Exi Min Mat Gar Fac Low Low Zio Pro Fac Ext Cet Arc Hub Turns Passed 11384 | 89 1472 710 430 509 867 699 1979 110 420 115 221 866 1190 636 528 543 Spaces Moved 14361 | 51 701 278 201 234 197 246 4734 417 1203 184 653 1877 1821 499 316 749 Core 35 | 5 . . . . . . . . . . . . 1 29 . . Treads 1338 | 46 592 . . . 86 246 . . . . . . . 198 170 . Legs . | . . . . . . . . . . . . . . . . . Wheels 933 | . 109 278 201 234 111 . . . . . . . . . . . Hover . | . . . . . . . . . . . . . . . . . Flight 12055 | . . . . . . . 4734 417 1203 184 653 1877 1820 272 146 749 Fastest Speed 23 | 50 160 200 215 215 230 240 26 26 26 26 26 23 23 23 26 26 Average Speed 56 | 149 171 215 215 215 357 240 27 26 26 26 26 23 32 103 98 28 Slowest Speed 560 | 160 240 230 215 215 560 240 105 96 26 26 26 23 100 500 160 103 Overloaded Moves . | . . . . . . . . . . . . . . . . . Propulsion Burnouts . | . . . . . . . . . . . . . . . . . Robots Hopped 57 | . . . . . . . 18 . . . . 3 12 4 . 20 Cave-ins Triggered . | . . . . . . . . . . . . . . . . . Exploration Rate (%) 62 | 4 97 66 59 62 22 42 85 62 98 11 73 53 87 78 98 57 Regions Visited 16 Branch Regions 11 Pre-discovered Areas 2 | . . . 1 . . . . 1 . . . . . . . . Known Exits Taken 10 | . . . . . 1 . 1 1 1 1 1 1 1 1 1 . Unknown Exits Taken 5 | 1 1 1 1 1 . . . . . . . . . . . . Scrap Searched 12 | . . . . 2 . . . 2 5 . 3 . . . . . Spaces Dug 109 | . . . . . . . 44 . 1 . 2 48 5 . . 9 Terrain Destroyed 316 | . . 9 . 1 . . 44 . 1 . 2 48 108 17 16 70 Melee 87 | . . . . . . . 44 . 1 . 2 35 5 . . . Projectile 62 | . . . . 1 . . . . . . . 13 . 17 16 15 AOE 167 | . . 9 . . . . . . . . . . 103 . . 55 Terrain Rammed . | . . . . . . . . . . . . . . . . . Walls Destroyed . | . . . . . . . . . . . . . . . . . Machines Disabled . | . . . . . . . . . . . . . . . . . Actions | -11 -10 -10 -10 -9 -8 -8 -7 -7 -7 -7 -6 -6 -6 -6 -6 -6 --------- Run | Yrd Mat Min Exi Min Mat Gar Fac Low Low Zio Pro Fac Ext Cet Arc Hub Total 16848 | 61 850 354 200 237 289 322 5285 418 1313 250 699 2224 2350 581 438 977 Wait 1524 | 1 46 33 . . 21 8 356 . 84 67 43 255 403 31 26 150 Move 14244 | 50 700 277 200 233 196 245 4698 416 1202 183 652 1871 1802 491 315 713 Hop 44 | . . . . . . . 17 . . . . 2 6 3 . 16 Pick Up 118 | 2 13 9 . 2 15 8 22 . 7 . . 9 18 1 9 3 Fast Attach 74 | 7 9 3 . . 6 4 12 . 3 . . 4 2 10 7 7 Attach 57 | . 5 3 . . 2 . 14 1 2 . . 6 10 6 7 1 Detach 20 | . . 1 . . . . 5 1 2 . . 3 1 5 1 1 Swap 47 | . 3 3 . . 2 3 18 . . . 2 4 8 . 3 1 Drop 130 | 1 6 4 . . 10 14 44 . 12 . . 9 12 2 12 4 Fire 343 | . 65 20 . 2 37 19 . . . . . 13 22 27 57 81 Melee 141 | . . . . . . . 66 . 1 . 2 48 22 2 . . Ram 1 | . . 1 . . . . . . . . . . . . . . Kick . | . . . . . . . . . . . . . . . . . Crush 7 | . 3 . . . . . . . . . . . . 3 1 . Escape Stasis 52 | . . . . . . . 33 . . . . . 19 . . . Rewire 46 | . . . . . . 21 . . . . . . 25 . . . Trap . | . . . . . . . . . . . . . . . . . Miscellaneous . | . . . . . . . . . . . . . . . . . Route ------- -11/Scrapyard -10/Materials (discovered 4 exits: [*Mat x3] / *Min) -10/Mines (discovered 3 exits: [*Mat x2] / *Exi) -10/Exiles -9/Mines -8/Materials -8/Garrison (discovered 3 exits: *Fac x3) -7/Factory (discovered 5 exits: *Fac x3 / *Low x2) -7/Lower Caves -7/Lower Caves (discovered 2 exits: *Fac / *Zio) -7/Zion -6/Proximity Caves -6/Factory (discovered 6 exits: *Fac x2 / *Low x2 / *Ext x2) -6/Extension (discovered 3 exits: *Fac x2 / *Cet) -6/Cetus (discovered 2 exits: *Fac / *Arc) -6/Archives (discovered 3 exits: *Fac / *Hub x2) -6/Hub_04(d) History --------- Turn | Location | Event 9 | -11/Scrapyard | Discovered new exit (range 14) 90 | -11/Scrapyard | Entered Materials 318 | -10/Materials | Build established: Mutant 406 | -10/Materials | Discovered new exit (range 11) 711 | -10/Materials | Repaired Lgt. Treads 730 | -10/Materials | Discovered new exit (range 3) 1236 | -10/Materials | Core integrity fell below 50% 1279 | -10/Materials | Lost 3 parts (1p1n1w) 1351 | -10/Materials | Discovered new exit (range 8) 1429 | -10/Materials | Discovered new exit (range 12) 1562 | -10/Materials | Entered Mines 1574 | -10/Mines | Assembled infested the area 1596 | -10/Mines | Core integrity fell below 20% 1617 | -10/Mines | Destroyed 9 combat bots 1621 | -10/Mines | Lost 3 parts (1p1n1w) 1640 | -10/Mines | Met 8R-AWN 1737 | -10/Mines | Met a Derelict shopkeep closing up shop 1787 | -10/Mines | Discovered new exit (range 9) 1859 | -10/Mines | Discovered new exit (range 5) 1932 | -10/Mines | Learned Materials garrison access intel 1986 | -10/Mines | Discovered new exit (range 13) 1990 | -10/Mines | Found a damaged Exp. Sensor Array with a note attached 1995 | -10/Mines | Found Prototype Device 1995 | -10/Mines | Identified Exp. Sensor Array 2272 | -10/Mines | Entered Exiles 2324 | -10/Exiles | Welcomed by 8R-AWN 2361 | -10/Exiles | Met EX-HEX 2427 | -10/Exiles | Met EX-BIN 2591 | -10/Exiles | Met EX-DEC 2606 | -10/Exiles | Learned location of Zion (-7) 2685 | -10/Exiles | Discovered new exit (range 10) 2702 | -10/Exiles | Entered Mines 2891 | -9/Mines | YI-UF0 nonchalantly dropped a Grenade Launcher on the ground 3018 | -9/Mines | Learned Materials trap positions 3188 | -9/Mines | Discovered new exit (range 5) 3211 | -9/Mines | Entered Materials 3211 | -8/Materials | Evolved 4 slots: Propulsion x2, Utility x2 3212 | -8/Materials | Loaded intel: 6 trap records 3213 | -8/Materials | Loaded intel: 1 garrison access location 3853 | -8/Materials | Build established: Scavenger-Mutant 4020 | -8/Materials | Identified exit to Garrison 4078 | -8/Materials | Entered Garrison 4148 | -8/Garrison | Triggered checkpoint 4308 | -8/Garrison | Discovered new exit (range 65) 4308 | -8/Garrison | Discovered new exit (range 55) 4308 | -8/Garrison | Discovered new exit (range 23) 4472 | -8/Garrison | Triggered checkpoint 4585 | -8/Garrison | Installed Relay Interface Framework 4777 | -8/Garrison | Entered Factory 4777 | -7/Factory | Accompanied by 3 allies 4777 | -7/Factory | Evolved 2 slots: Utility x2 4922 | -7/Factory | Discovered new exit (range 20) 5078 | -7/Factory | Build established: Sprinter 5332 | -7/Factory | Discovered new exit (range 4) 5332 | -7/Factory | Identified exit to Factory 5407 | -7/Factory | Discovered exit to Factory (range 5) 5448 | -7/Factory | Build established: Scout 5719 | -7/Factory | Repaired Broken Exp. Sensor Array? 5883 | -7/Factory | Build established: Hacker-Sprinter 5960 | -7/Factory | Repaired Imp. Propulsion Shielding 6051 | -7/Factory | Fabricated Imp. VTOL Module (x1) 6069 | -7/Factory | Discovered new exit (range 5) 6071 | -7/Factory | Identified exit to Lower Caves 6228 | -7/Factory | Fabricated Imp. VTOL Module (x1) 6398 | -7/Factory | Discovered exit to Lower Caves (range 8) 6466 | -7/Factory | Fabricated Imp. VTOL Module? 6600 | -7/Factory | Fabricated Imp. VTOL Module? 6658 | -7/Factory | Central database locked down 6704 | -7/Factory | Fabricated Imp. VTOL Module (x1) 6756 | -7/Factory | Entered Lower Caves 6860 | -7/Lower Caves | Discovered new exit (range 3) 6861 | -7/Lower Caves | Identified exit to Lower Caves 6866 | -7/Lower Caves | Entered another Lower Caves area 6881 | -7/Lower Caves | Discovered exit to Factory (range 9) 6895 | -7/Lower Caves | Encountered a Warlord checkpoint 7098 | -7/Lower Caves | Found Prototype Device 7098 | -7/Lower Caves | Identified Heart of Steel 7283 | -7/Lower Caves | Discovered new exit (range 4) 7283 | -7/Lower Caves | Learned 4 Factory zone layouts 7284 | -7/Lower Caves | Identified exit to Zion 7286 | -7/Lower Caves | Entered Zion 7298 | -7/Zion | Discovered new exit (range 16) 7302 | -7/Zion | Identified exit to Proximity Caves 7401 | -7/Zion | Entered Proximity Caves 7591 | -6/Proximity Caves | Discovered exit to Factory (range 4) 7622 | -6/Proximity Caves | Entered Factory 7622 | -6/Factory | Evolved 2 slots: Propulsion x1, Utility x1 7735 | -6/Factory | Repaired Exp. Sensor Array? 8080 | -6/Factory | Discovered new exit (range 14) 8146 | -6/Factory | Identified exit to Lower Caves 8146 | -6/Factory | Identified exit to Extension 8169 | -6/Factory | Repaired Imp. Propulsion Shielding 8257 | -6/Factory | Central database locked down 8324 | -6/Factory | Hacking Suite fried by hacking feedback 8412 | -6/Factory | Discovered new exit (range 9) 8414 | -6/Factory | Identified exit to Factory 8488 | -6/Factory | Entered Extension 8551 | -6/Extension | Rescued a captive Derelict 8556 | -6/Extension | Rescued a captive Derelict 8558 | -6/Extension | Rescued a captive Derelict 8576 | -6/Extension | Rescued a captive Derelict 8576 | -6/Extension | Rescued a captive Derelict 8577 | -6/Extension | Rescued a captive Derelict 8583 | -6/Extension | Energy Cycler disabled 8585 | -6/Extension | Rescued a captive Derelict 8587 | -6/Extension | Rescued a captive Derelict 8587 | -6/Extension | Rescued a captive Derelict 8601 | -6/Extension | Build established: Machinist-Sprinter 8817 | -6/Extension | Spotted B-75 Beast 8906 | -6/Extension | Destroyed B-75 Beast 8918 | -6/Extension | Spotted B-75 Beast 8936 | -6/Extension | Discovered exit to Factory (range 14) 8978 | -6/Extension | Lost 3 allies 8988 | -6/Extension | Disrupted transfer network 8991 | -6/Extension | Extracted ID and sensor layout for unrecognized location from A7's data core 9117 | -6/Extension | Lost 3 allies 9144 | -6/Extension | Discovered exit to Factory (range 10) 9145 | -6/Extension | Discovered new exit (range 6) 9146 | -6/Extension | Identified exit to Cetus 9483 | -6/Extension | Heart of Steel transformed into Warbot 9678 | -6/Extension | Entered Cetus 9678 | -6/Cetus | Accompanied by 1 ally (Warbot) 9682 | -6/Cetus | Spotted Cetus Guard 9682 | -6/Cetus | Spotted Cetus Guard 9682 | -6/Cetus | Spotted Cetus Guard 9682 | -6/Cetus | Spotted Cetus Guard 9754 | -6/Cetus | Allies destroyed Cetus Guard 9760 | -6/Cetus | Allies destroyed Cetus Guard 9834 | -6/Cetus | Discovered new exit (range 15) 9864 | -6/Cetus | Spotted Cetus Guard 9864 | -6/Cetus | Spotted Cetus Guard 9870 | -6/Cetus | Core integrity fell below 50% 9874 | -6/Cetus | Spotted Cetus Guard 9879 | -6/Cetus | Allies destroyed Cetus Guard 9880 | -6/Cetus | Spotted Cetus Guard 9928 | -6/Cetus | Discovered exit to Factory (range 16) 9976 | -6/Cetus | Destroyed Cetus Guard 9984 | -6/Cetus | Lost 10 parts (3p3n1u3w) 10002 | -6/Cetus | Met Revision 17 10313 | -6/Cetus | Identified exit to Archives 10314 | -6/Cetus | Entered Archives 10321 | -6/Archives | Build established: Scavenger-Mutant 10349 | -6/Archives | Core integrity fell below 20% 10474 | -6/Archives | Discovered exit to Factory (range 14) 10543 | -6/Archives | Discovered new exit (range 16) 10815 | -6/Archives | Discovered new exit (range 15) 10819 | -6/Archives | Identified exit to Hub_04(d) 10842 | -6/Archives | Entered Hub_04(d) 11073 | -6/Hub_04(d) | Lost 4 parts (2n2u) 11379 | -6/Hub_04(d) | Network Hub disabled 11383 | -6/Hub_04(d) | Network Hub disabled 11385 | -6/Hub_04(d) | Network Hub disabled 11385 | -6/Hub_04(d) | Network Hub disabled 11385 | -6/Hub_04(d) | Destroyed self via exploding Network Hub Last Messages --------------- COORDINATES_RETRIEVED ALERT: Suspicious activity at Terminal H011. Dispatching Investigation squad. Detecting nearby Garrison Access. Connecting with Terminal... ALERT: Network intrusion management efficiency at 70%. >>Force(Sabotage) SYSTEM_VULNERABLE[Network Hub] NETWORK_OVERLOAD COORDINATES_RETRIEVED ALERT: Suspicious activity at Terminal H012. Dispatching Investigation squad. Connecting with Terminal... ALERT: Network intrusion management efficiency at 65%. ALERT: Network intrusion management efficiency at 63%. Network Hub explodes. Backup Mainframe disabled. Map ----- +----------------------------------------------------+ | | | | | | | | | | | | | | | ?????????????????????????????????????? | | ?????????????????????????????????????? | | ?????????????????????????????????????? | | ?????????????????????????????????????? | | ?????????????????????????????????????? | | ?????????????????????????????????????? | | ??????????????????????i??????????????? | | ?????????????g?????i?????????????????? | | ??????????????i??????????????????????? | | ?????????????g"""" ??????????????????? | | ?????????????g"""" ??????????????????? | | ??????????#???""""?#?????????????????? | | ??????????#"?? """ #?????????????????? | | ??????????# ?gg #?????????????????? | | ??????????#;##;g#;#######+#########+## | | ?# ??????## | | ??# ;=;#;#; | | ????#%= | | ???????##;;;;@;##" #" ### ####????? | | ???; ###"T#"T#?# o#???????? | | ???# ! ;?######### #???????? | | ???# #???#"""""# #???????? | | ???# ;####""T""# #???????? | | ?? ; + #???????? | | ?### ; k+???????? | | ?? ; ;### """"" #???????? | | ?### ;??# ""T"" #???????? | | ???# ???# u #???????? | | ???; ???# k #???????? | | ?? ; ???# k #???????? | | ????#;###;;;;;####+###+## #???###?? | | ????????### ## ###### ### | | ??????????# ## # # | | ??????????# ## # "" # | | ??????????# [ A # "T # | | ??????????################ + "" # | | ?????????????????????????## # # | | ??????????????????????????# # % # | | ??????????????????????????# # # | | ??????????????????????????# # """" # | | ??????????????????????????# # """" # | | ?????????????????????????? # """" # | | ??????????????????????????# # """" # | +----------------------------------------------------+ Best States ------------- Heat Dissipation 56 Energy Generation 18 Energy Capacity 275 Matter Stores 300 Matter Capacity 300 Sight Range 22 Robot Scan Range 20 Terrain Scan Density 10 Additional Mass Support 9 Armor Coverage 375 Propulsion Shielding 66 Utility Shielding 66 Evasion (%) 65 Targeting Accuracy 16 Recoil Reduction 4 Offensive Hacking 36 Defensive Hacking 12 Item Schematics ----------------- ECM Suite | -10/Materials | Hacked Transmission Jammer | -7/Factory | Hacked Imp. VTOL Module | -7/Factory | Hacked Hacking Suite | -7/Factory | Hacked Scythe | -7/Factory | Hacked Adv. Drone Bay | -7/Factory | Hacked Lgt. Fission Core | -7/Factory | Hacked System Restoration Module | -6/Factory | Scanalyzed Imp. Utility Shielding | -6/Factory | Scanalyzed Cld. VTOL Module | -6/Factory | Hacked Mic. Fission Core | -6/Extension | Hacked Imp. Hacking Suite | -6/Extension | Hacked Robot Schematics ------------------ None Fabricated ------------ Imp. VTOL Module | x1 | -7/Factory Imp. VTOL Module | x1 | -7/Factory Imp. VTOL Module | x1 | -7/Factory Imp. VTOL Module | x1 | -7/Factory Imp. VTOL Module | x1 | -7/Factory Alien Tech Used ----------------- None Achievements -------------- None Challenges ------------ None Game ------ Seed SignalMetafiberBox Manual? 0 Play Time 02:56:03 Cumulative 206.1 hours Start 2024.06.25 @ 22:11:07 End 2024.06.26 @ 01:08:46 Sessions 1 Manual Loads 0 Difficulty Rogue Special Mode None Game No. 214 Rogue 214 Adventurer 0 Explorer 0 Win Type - Total 15 Types 14/0/0/1/0/0/0/0/0 Lore% 72 Gallery% 82 Achievement% 78 Wizard Run 0 Options --------- Layout 1 ASCII 0 Keyboard 0 Movement Numpad Keybinds 0 Fullscreen 1 Font 24/Smallcaps Map View 50x35 Zoom Use 0% Tactical HUD 1 Map Filters NONE Filters NONE Steam 1 RUN: 5a051fb6-5e58-4852-9cb6-ebe529863126